bitfinex/quotes_ETHUSD_20251116
["timestamp","ask_amount","ask_price","bid_price","bid_amount"]
[1763258461448,0.002,3154.6,3154.5,0.6985]
[1763258461746,0.3244,3154.6,3153.6,4.75165147]
[1763258461962,6.34014898,3154.5,3153.7,0.4953]
[1763258462686,9.51022347,3154.5,3153.7,0.4953]
[1763258463579,6.34014898,3154.5,3153.7,0.4953]
[1763258463779,3.17007449,3154.5,3154.4,0.4997]
[1763258464179,0.002,3154.6,3154.4,0.4997]
[1763258464380,0.3224,3154.5,3154.1,0.469]
[1763258464562,0.3224,3154.5,3153.8,0.469]
[1763258464762,0.475,3154.4,3153.1,0.1988]
[1763258464974,0.3239,3153.5,3153.1,0.1988]
[1763258465357,0.3239,3153.5,3152.6,0.469]
[1763258465577,0.3239,3153.5,3153.1,0.1906]
[1763258465759,0.8081,3153.5,3152.5,0.47]
[1763258465967,0.8081,3153.5,3152.7,0.47]
[1763258466294,3.97917975,3153.5,3152.7,0.001]
[1763258466470,3.49497975,3153.5,3152.7,0.47]
[1763258466668,3.97917975,3153.5,3152.7,0.47]
[1763258467269,3.17107975,3153.5,3153.1,0.1906]
[1763258467885,3.49347975,3153.5,3153.1,0.1906]
[1763258468187,3.97917975,3153.5,3153.0,0.001]
[1763258468854,5.11292055,3153.5,3153.0,0.001]
[1763258469783,0.502857,3153.9,3153.0,0.001]
[1763258469784,0.5039582,3154.0,3153.4,0.4842]
[1763258470097,3.48897975,3153.5,3153.4,0.001]
[1763258471162,3.97457975,3153.5,3153.4,0.001]
[1763258471362,3.48897975,3153.5,3153.4,0.001]
[1763258471661,3.17107975,3153.5,3153.4,0.001]
[1763258471858,3.17107975,3153.5,3153.4,0.9532]
[1763258472059,6.3415562,3153.8,3153.4,0.9532]
[1763258472265,6.8288562,3153.8,3153.4,0.001]
[1763258472478,9.5123343,3153.8,3153.4,0.001]
[1763258472804,1.3151408,3153.9,3153.4,0.001]
[1763258472805,3.17072375,3153.9,3153.7,0.4832]
[1763258473008,4.30446455,3153.9,3153.7,0.4832]
[1763258473205,4.30446455,3153.9,3153.8,0.4832]
[1763258473435,4.30441837,3153.9,3153.8,0.4832]
[1763258473563,4.30441837,3153.9,3153.8,0.9492]
[1763258473759,8.46019594,3153.9,3153.4,0.001]
[1763258473997,0.4605,3153.8,3153.4,0.001]
[1763258474172,6.3417573,3153.7,3153.4,0.001]
[1763258474579,3.17087865,3153.7,3153.6,0.4605]
[1763258474771,4.30443481,3153.9,3153.6,0.4605]
[1763258475102,4.30443481,3153.9,3153.4,0.001]
[1763258475303,4.30443481,3153.9,3153.4,0.467]
[1763258475700,10.83470639,3153.9,3153.4,0.001]
[1763258476063,10.83470639,3153.9,3153.4,0.467]
[1763258476266,10.64580639,3153.9,3153.4,0.467]
[1763258476499,0.479,3153.5,3153.4,0.001]
[1763258476875,0.3187,3153.8,3153.4,0.001]
[1763258477249,7.47511238,3153.9,3153.7,0.4605]
[1763258477414,7.47511238,3153.9,3153.4,0.467]
[1763258477599,10.83470639,3153.9,3153.4,0.467]
[1763258477801,10.83470639,3153.9,3153.8,0.4605]
[1763258477802,4.30441837,3153.9,3153.8,0.4605]
[1763258478121,8.46021238,3153.9,3153.4,0.001]
[1763258478266,6.3417573,3153.7,3153.4,0.001]
[1763258478674,0.479,3153.5,3153.4,0.001]
[1763258479093,0.7977,3153.5,3153.4,0.001]
[1763258479663,1.2647,3153.5,3153.4,0.001]
[1763258480491,5.56952055,3153.5,3153.4,0.001]
[1763258481570,5.10252055,3153.5,3153.4,0.001]
[1763258482204,4.30482055,3153.5,3153.4,0.4615]
[1763258482577,4.30482055,3153.5,3153.4,0.9275]
[1763258483000,3.17097958,3153.6,3153.4,0.9275]
[1763258483001,1.1337408,3153.6,3153.4,0.9275]
[1763258483195,3.17087865,3153.7,3153.5,0.9265]
[1763258483383,4.30461945,3153.7,3153.6,0.4605]
[1763258483585,4.30461945,3153.7,3153.6,0.9265]
[1763258483901,7.6167981,3153.7,3153.4,0.001]
[1763258484103,0.479,3153.5,3153.4,0.001]
[1763258484597,5.50802455,3153.5,3153.4,0.001]
[1763258485140,5.50802455,3153.5,3153.0,0.001]
[1763258485141,1.5392448,3153.4,3153.0,0.001]
[1763258485304,0.3273,3153.1,3153.0,0.001]
[1763258485706,0.7952,3153.1,3153.0,0.001]
[1763258485907,1.200704,3153.1,3153.0,0.001]
[1763258486651,5.50592683,3153.1,3153.0,0.001]
[1763258487310,1.7281448,3152.8,3152.5,0.001]
[1763258487510,1.7281448,3152.8,3152.1,0.001]
[1763258487511,0.405504,3152.5,3152.1,0.001]
[1763258487818,0.884504,3152.2,3152.1,0.001]
[1763258488237,1.212504,3152.2,3152.1,0.001]
[1763258488439,1.212504,3152.2,3151.8,0.001]
[1763258488440,1.5392448,3151.5,3149.9,0.001]
[1763258488753,0.740904,3151.1,3149.9,0.001]
[1763258488919,0.1923,3150.8,3149.9,0.001]
[1763258489243,0.405504,3150.7,3149.9,0.001]
[1763258489444,0.3299,3150.6,3149.9,0.001]
[1763258489612,0.7992,3150.6,3149.9,0.001]
[1763258490641,5.1069394,3150.6,3149.9,0.001]
[1763258490807,5.1069394,3150.6,3150.5,0.4615]
[1763258490808,1.1337408,3150.6,3150.5,0.4615]
[1763258491010,0.49801555,3150.7,3150.5,0.9275]
[1763258491333,0.4693,3151.6,3150.6,0.9265]
[1763258491641,0.49788228,3151.5,3150.6,0.9265]
[1763258491809,0.49788228,3151.5,3150.7,0.466]
[1763258492215,0.49788228,3151.5,3150.5,0.001]
[1763258492216,0.4693,3151.4,3150.5,0.001]
[1763258492752,3.5071986,3150.6,3150.5,0.001]
[1763258493262,4.6409394,3150.6,3150.5,0.001]
[1763258493472,5.5143434,3150.6,3150.5,0.001]
[1763258495522,5.1088394,3150.6,3150.5,0.001]
[1763258498743,3.1739986,3150.6,3150.5,0.4766]
[1763258499123,3.1739986,3150.6,3150.5,0.001]
[1763258502139,3.1739986,3150.6,3150.5,0.4766]
[1763258502340,3.1739986,3150.6,3150.5,0.9284]
[1763258502644,3.1739986,3150.6,3150.5,0.4766]
[1763258502849,3.1739986,3150.6,3150.5,0.001]
[1763258503596,4.3077394,3150.6,3150.5,0.001]
[1763258503978,4.3077394,3150.6,3150.5,0.4766]
[1763258504149,4.3077394,3150.6,3150.5,0.9284]
[1763258504486,4.3077394,3150.6,3150.5,0.4766]
[1763258505360,4.3077394,3150.6,3150.5,0.9284]
[1763258505688,4.3077394,3150.6,3150.5,0.4766]
[1763258506039,4.3077394,3150.6,3150.5,0.9284]
[1763258506273,4.3077394,3150.6,3150.5,0.4766]
[1763258507392,3.1739986,3150.6,3150.5,0.9284]
[1763258507556,0.002,3150.7,3150.5,0.9284]
[1763258507757,0.002,3150.7,3150.6,0.9274]
[1763258511258,0.002,3150.7,3150.6,0.4756]
[1763258511589,0.002,3150.7,3150.5,0.001]
[1763258512657,0.3044,3150.6,3150.5,0.001]
[1763258513167,0.709904,3150.6,3150.5,0.001]
[1763258513364,1.206404,3150.6,3150.5,0.001]
[1763258513797,5.5141434,3150.6,3150.5,0.001]
[1763258517092,6.01463408,3150.6,3150.5,0.001]
[1763258517599,6.01463408,3150.6,3150.5,0.0002]
[1763258518903,5.51065206,3150.6,3150.5,0.0002]
[1763258522008,3.67207179,3150.6,3150.5,0.9276]
[1763258522307,3.67207179,3150.6,3150.5,0.0002]
[1763258522536,4.80581259,3150.6,3150.5,0.0002]
[1763258524707,5.58101259,3150.6,3150.5,0.0002]
[1763258525019,5.98651659,3150.6,3150.5,0.0002]
[1763258525423,14.43976363,3150.6,3150.5,0.0002]
[1763258525603,14.94262063,3150.6,3150.5,0.0002]
[1763258525803,15.06985862,3150.6,3150.5,0.0002]
[1763258527402,9.9577366,3150.6,3150.5,0.0002]
[1763258527634,9.9577366,3150.6,3150.2,0.001]
[1763258527635,1.1337408,3150.5,3150.2,0.001]
[1763258528133,1.1337408,3150.5,3150.4,0.4753]
[1763258528321,1.1337408,3150.5,3150.2,0.001]
[1763258528527,1.1337408,3150.3,3150.2,0.001]
[1763258528928,1.1337408,3150.3,3150.2,0.4763]
[1763258529129,1.1337408,3150.3,3150.2,0.9735]
[1763258530144,1.1337408,3150.3,3150.2,0.4763]
[1763258530327,1.5867408,3150.3,3150.2,0.001]
[1763258530641,5.10694166,3150.3,3150.2,0.001]
[1763258530802,4.76104166,3150.3,3150.2,0.001]
[1763258531010,4.30804166,3150.3,3150.2,0.9735]
[1763258531851,4.30804166,3150.3,3150.2,0.001]
[1763258533830,3.1739986,3150.6,3150.2,0.978]
[1763258534029,3.1739986,3150.6,3150.5,0.4939]
[1763258534220,4.3077394,3150.6,3150.5,0.4939]
[1763258534422,4.3077394,3150.6,3150.5,0.977]
[1763258534964,4.3077394,3150.6,3150.5,0.4939]
[1763258535732,4.3077394,3150.6,3150.5,0.977]
[1763258536134,4.3077394,3150.6,3150.5,0.4939]
[1763258537246,4.3077394,3150.6,3150.5,0.977]
[1763258537751,1.1337408,3150.5,3150.2,0.001]
[1763258538249,1.1337408,3150.5,3150.4,0.4939]
[1763258538451,1.1337408,3150.5,3150.4,0.977]
[1763258538865,1.1337408,3150.5,3150.2,0.001]
[1763258539069,4.30784014,3150.5,3150.4,0.4939]
[1763258539766,1.1337408,3150.4,3150.2,0.001]
[1763258539969,0.885604,3150.3,3150.2,0.001]
[1763258540628,0.410204,3150.3,3150.2,0.001]
[1763258541134,5.19364566,3150.3,3150.2,0.001]
[1763258542822,4.30804166,3150.3,3150.2,0.001]
[1763258543757,5.10574166,3150.3,3150.2,0.001]
[1763258544370,4.63184166,3150.3,3150.2,0.001]
[1763258544520,4.30804166,3150.3,3150.2,0.001]
[1763258545966,4.30804166,3150.3,3150.2,0.4949]
[1763258547358,3.17430086,3150.3,3150.2,0.978]
[1763258547562,3.17430086,3150.3,3150.2,0.001]
[1763258547752,3.17430086,3150.3,3150.2,0.4949]
[1763258548367,3.17430086,3150.3,3150.2,0.978]
[1763258549356,0.002,3150.6,3150.2,0.978]
[1763258549550,0.002,3150.6,3150.5,0.4939]
[1763258549946,0.002,3150.6,3150.2,0.001]
[1763258550476,0.4774,3150.6,3150.2,0.001]
[1763258550668,0.3238,3150.3,3150.2,0.001]
[1763258551265,4.63184166,3150.3,3150.2,0.001]
[1763258551650,5.10574166,3150.3,3150.2,0.001]
[1763258554384,5.51124566,3150.3,3150.2,0.001]
[1763258554682,6.01522768,3150.3,3150.2,0.001]
[1763258556663,0.0047,3149.6,3149.5,1e-08]
[1763258556986,0.602804,3149.6,3149.5,1e-08]
[1763258557149,1.088804,3149.6,3149.5,1e-08]
[1763258557686,4.30874715,3149.6,3149.5,1e-08]
[1763258557850,4.30874715,3149.6,3149.5,0.95750001]
[1763258558055,4.30874715,3149.6,3149.5,0.45790001]
[1763258558580,4.80184715,3149.6,3149.5,1e-08]
[1763258558785,5.10084715,3149.6,3149.5,1e-08]
[1763258559083,4.30874715,3149.6,3149.5,0.45790001]
[1763258559285,4.61484715,3149.6,3149.5,1e-08]
[1763258559583,5.50455115,3149.6,3149.5,1e-08]
[1763258560178,5.02035115,3149.6,3149.5,1e-08]
[1763258562198,5.52433317,3149.6,3149.5,1e-08]
[1763258562402,5.02035115,3149.6,3149.5,1e-08]
[1763258562775,4.71425115,3149.6,3149.5,1e-08]
[1763258563375,4.30874715,3149.6,3149.5,1e-08]
[1763258563695,4.30874715,3149.6,3149.5,0.95750001]
[1763258567919,0.002,3150.5,3149.5,0.95750001]
[1763258568121,14.23764216,3150.5,3149.6,0.9575]
[1763258568621,14.23764216,3150.5,3149.7,0.4996]
[1763258569520,17.4117415,3150.5,3149.7,0.4996]
[1763258569822,0.486,3150.4,3149.5,1e-08]
[1763258570120,1.1337408,3150.2,3149.5,0.49960001]
[1763258570501,1.1337408,3150.2,3150.1,0.4579]
[1763258572317,14.13744728,3150.2,3149.6,0.4996]
[1763258572725,10.96304566,3150.2,3149.6,0.4996]
[1763258573324,4.30814242,3150.2,3150.1,0.4579]
[1763258573599,4.30814242,3150.2,3150.1,0.6519]
[1763258573790,3.17440162,3150.2,3150.1,1.1515]
[1763258574427,0.002,3150.3,3150.1,1.1515]
[1763258574598,0.002,3150.3,3150.2,0.9575]
[1763258577898,0.002,3150.3,3150.2,0.4579]
[1763258578098,0.002,3150.3,3150.2,0.9575]
[1763258580332,0.002,3150.3,3150.2,0.4579]
[1763258581030,0.002,3150.3,3149.8,0.4996]
[1763258581236,0.002,3150.3,3149.5,1e-08]
[1763258581237,0.002,3150.3,3150.2,0.4579]
[1763258581528,0.002,3150.3,3150.2,0.6519]
[1763258581727,0.002,3150.3,3150.2,1.1515]
[1763258581933,0.002,3150.3,3150.2,0.6519]
[1763258582098,0.002,3150.3,3149.5,1e-08]
[1763258582099,0.7922,3150.3,3149.5,1e-08]
[1763258582303,0.308,3150.3,3149.6,0.4996]
[1763258582639,0.002,3150.3,3149.6,0.4996]
[1763258583033,1.1337408,3150.2,3149.6,0.4996]
[1763258583504,6.35060172,3150.3,3150.1,0.6519]
[1763258583505,3.17630086,3150.3,3150.1,0.6519]
[1763258583709,1.1337408,3150.2,3150.1,0.194]
[1763258583934,0.002,3150.3,3150.2,0.9575]
[1763258586244,0.002,3150.7,3150.4,0.4687]
[1763258586447,3.1721146,3152.5,3150.7,4.76673415]
[1763258586648,3.1727168,3151.9,3151.0,0.4687]
[1763258586938,3.66741502,3152.7,3151.1,5.38623415]
[1763258586939,3.17295936,3151.7,3151.1,5.38623415]
[1763258587110,1.1337408,3152.0,3151.1,9.11343254]
[1763258587314,6.34497636,3152.1,3151.1,9.58753254]
[1763258587508,3.17248818,3152.1,3151.3,0.4687]
[1763258587712,3.17158261,3153.0,3152.0,0.4687]
[1763258588041,6.34316522,3153.0,3152.5,0.4687]
[1763258588226,0.199,3152.9,3151.8,0.4741]
[1763258588541,1.8282408,3152.9,3151.8,0.4741]
[1763258589451,9.51535143,3152.8,3151.8,0.4741]
[1763258589741,9.51535143,3152.8,3151.1,0.1508]
[1763258589742,0.4712,3151.9,3151.1,0.1508]
[1763258590150,0.002,3151.4,3150.9,0.1508]
[1763258590351,0.002,3151.4,3150.8,0.4741]
[1763258590739,0.002,3151.4,3150.7,0.1814]
[1763258590947,0.405504,3151.3,3150.6,0.001]
[1763258591377,1.1337408,3151.1,3150.6,0.001]
[1763258592120,0.405504,3151.0,3150.6,0.001]
[1763258592323,0.6742,3150.7,3150.6,0.001]
[1763258592541,1.079704,3150.7,3150.6,0.001]
[1763258592754,1.369404,3150.7,3150.6,0.001]
[1763258593262,5.04134775,3150.7,3150.6,0.001]
[1763258593473,6.67907057,3150.7,3150.6,0.001]
[1763258593653,6.17508855,3150.7,3150.6,0.001]
[1763258595367,5.88538855,3150.7,3150.6,0.001]
[1763258595572,5.88538855,3150.7,3150.6,0.9054]
[1763258595573,4.30763866,3150.7,3150.6,0.9054]
[1763258595768,0.002,3151.4,3150.6,0.9054]
[1763258595769,9.51988068,3151.3,3150.6,0.9054]
[1763258595939,1.1337408,3151.2,3150.6,0.9054]
[1763258596143,1.1337408,3151.2,3150.7,0.4523]
[1763258597243,9.52078704,3151.0,3150.6,0.001]
[1763258597443,1.1337408,3150.9,3150.6,0.001]
[1763258598082,0.2999,3150.7,3150.6,0.001]
[1763258599264,3.47379786,3150.7,3150.6,0.001]
[1763258599463,3.17389786,3150.7,3150.6,0.001]
[1763258600189,3.17373138,3150.9,3150.6,0.9054]
[1763258600391,7.48120356,3150.9,3150.6,0.001]
[1763258600598,1.1337408,3150.8,3150.6,0.001]
[1763258601100,1.1337408,3150.8,3150.7,0.4521]
[1763258601415,1.5392448,3151.3,3150.7,0.4521]
[1763258601600,1.5392448,3151.3,3150.8,0.4521]
[1763258602587,1.1337408,3151.3,3150.9,0.4523]
[1763258602787,1.1337408,3151.3,3151.2,0.5814]
[1763258603173,1.1337408,3151.3,3150.7,0.1814]
[1763258603174,1.4332408,3151.3,3150.7,0.1814]
[1763258603383,1.4332408,3151.3,3150.6,0.001]
[1763258603384,1.1337408,3151.1,3150.6,0.001]
[1763258603768,1.1337408,3151.1,3150.6,0.4533]
[1763258604492,1.1337408,3151.1,3150.6,0.001]
[1763258604965,1.6019408,3151.1,3150.6,0.001]
[1763258605396,6.34719136,3151.0,3150.7,0.4523]
[1763258605630,4.30733648,3151.0,3150.9,0.4521]
[1763258606230,4.30733648,3151.0,3150.9,0.9044]
[1763258606424,4.30733648,3151.0,3150.6,0.001]
[1763258606425,10.65452784,3151.0,3150.6,0.001]
[1763258606991,0.2995,3150.7,3150.6,0.001]
[1763258607395,0.766,3150.7,3150.6,0.001]
[1763258607631,3.93989786,3150.7,3150.6,0.001]
[1763258607943,5.07363866,3150.7,3150.6,0.001]
[1763258609232,5.07363866,3150.7,3150.6,0.9054]
[1763258609233,4.30763866,3150.7,3150.6,0.9054]
[1763258609594,3.17389786,3150.7,3150.6,0.9054]
[1763258609894,1.1337408,3151.1,3150.6,0.9054]
[1763258610257,1.1337408,3151.1,3150.6,0.4531]
[1763258610536,1.6019408,3151.1,3150.6,0.001]
[1763258611450,1.1337408,3151.1,3150.6,0.001]
[1763258611647,1.1337408,3151.1,3150.7,0.4523]
[1763258611852,9.52078704,3151.0,3150.6,0.001]
[1763258612510,6.34719136,3151.0,3150.6,0.001]
[1763258612732,1.1337408,3151.0,3150.9,0.4521]
[1763258613245,1.1337408,3151.0,3150.9,0.9044]
[1763258613763,1.1337408,3151.0,3150.9,0.4521]
[1763258614136,4.30733648,3151.0,3150.9,0.9344]
[1763258614849,10.65452784,3151.0,3150.6,0.001]
[1763258616262,7.48093216,3151.0,3150.6,0.001]
[1763258616488,7.48093216,3151.0,3150.6,0.4833]
[1763258616650,10.65452784,3151.0,3150.6,0.4833]
[1763258616865,7.48093216,3151.0,3150.6,0.4833]
[1763258617048,4.30733648,3151.0,3150.9,0.4914]
[1763258617254,4.30733648,3151.0,3150.9,0.9737]
[1763258618149,4.30733648,3151.0,3150.9,0.4914]
[1763258618970,0.002,3151.4,3150.9,0.9737]
[1763258619171,3.17527521,3151.4,3151.3,0.6776]
[1763258619374,0.002,3151.4,3151.3,0.6776]
[1763258619676,3.17519286,3151.4,3151.3,1.1599]
[1763258620555,0.002,3151.4,3151.3,0.6776]
[1763258620747,0.002,3151.4,3151.3,1.1599]
[1763258624093,0.002,3151.4,3151.3,0.4914]
[1763258624269,0.002,3151.4,3150.9,0.6685]
[1763258624756,0.002,3151.4,3151.0,0.4823]
[1763258625152,0.002,3151.4,3151.3,0.4914]
[1763258625563,0.002,3151.4,3151.3,0.9737]
[1763258626985,0.002,3151.4,3151.3,1.38841403]
[1763258627161,0.002,3151.4,3151.3,0.9737]
[1763258635424,0.002,3151.4,3151.3,0.4914]
[1763258635811,0.002,3151.4,3151.1,0.4823]
[1763258636011,0.002,3151.4,3151.0,4.76673415]
[1763258636012,0.002,3151.4,3151.3,0.4914]
[1763258636430,0.002,3151.4,3151.3,0.9737]
[1763258638191,0.002,3151.4,3151.3,0.4914]
[1763258638705,0.002,3151.4,3151.3,0.9737]
[1763258639039,0.002,3151.4,3151.3,0.4914]
[1763258640109,0.002,3151.4,3151.3,0.9737]
[1763258640993,0.002,3151.4,3151.3,0.4914]
[1763258641198,0.002,3151.4,3151.0,4.76673415]
[1763258641408,0.002,3151.4,3150.9,0.6685]
[1763258641603,0.002,3151.4,3151.3,0.4914]
[1763258641810,0.002,3151.4,3151.3,0.4924]
[1763258642009,0.002,3151.4,3151.3,0.9747]
[1763258642209,0.002,3151.4,3151.3,0.001]
[1763258642210,0.4624,3151.4,3151.3,0.001]
[1763258642437,0.7955,3151.4,3151.3,0.001]
[1763258642733,0.4624,3151.4,3151.3,0.001]
[1763258642954,0.002,3151.4,3151.3,0.4924]
[1763258643149,0.002,3151.4,3151.3,0.9747]
[1763258643622,0.002,3151.4,3151.3,0.001]
[1763258644627,0.3361,3151.4,3151.3,0.001]
[1763258645028,0.002,3151.4,3151.3,0.9398]
[1763258645334,0.002,3151.4,3151.3,1.40014155]
[1763258645740,0.002,3151.4,3151.3,0.001]
[1763258646046,0.002,3151.4,3151.3,0.9398]
[1763258646255,0.002,3151.4,3151.3,0.488]
[1763258646459,0.3058,3151.4,3151.3,0.001]
[1763258646748,0.002,3151.4,3151.3,0.488]
[1763258647515,0.002,3151.4,3151.3,0.9398]
[1763258647733,0.002,3151.4,3151.3,1.49402155]
[1763258650976,0.002,3151.4,3151.3,0.488]
[1763258651182,0.002,3151.4,3151.3,0.9398]
[1763258652478,0.002,3151.4,3151.3,0.488]
[1763258652642,0.002,3151.4,3151.3,0.9398]
[1763258652848,0.002,3151.4,3151.3,4.14482649]
[1763258653044,0.002,3151.4,3151.3,5.33688987]
[1763258653346,0.002,3151.4,3151.3,5.30515694]
[1763258653554,0.002,3151.4,3151.3,5.33688987]
[1763258653754,0.002,3151.4,3151.3,5.30515694]
[1763258654953,0.002,3151.4,3151.3,8.93470235]
[1763258655153,0.002,3151.4,3151.3,5.76140879]
[1763258655360,0.002,3151.4,3151.3,8.93470235]
[1763258656972,0.002,3151.4,3151.3,9.90602346]
[1763258657175,0.002,3151.4,3151.3,6.7327299]
[1763258658003,0.002,3151.4,3151.3,9.90602346]
[1763258659407,0.002,3151.8,3151.5,0.405504]
[1763258659701,0.002,3151.8,3151.7,5.09886652]
[1763258659902,0.002,3151.8,3151.7,5.68103247]
[1763258660109,0.002,3151.8,3151.7,6.17123247]
[1763258660281,0.002,3151.8,3151.7,6.57673647]
[1763258660485,0.002,3151.8,3151.7,6.54500757]
[1763258661286,0.002,3151.8,3151.7,9.71789839]
[1763258661812,0.002,3151.8,3151.7,9.31239439]
[1763258661984,0.002,3151.8,3151.7,5.64930357]
[1763258662722,0.002,3151.8,3151.7,8.82219439]
[1763258663135,0.7675,3151.8,3151.3,0.001]
[1763258663329,0.3104,3151.4,3151.3,0.001]
[1763258663692,0.50598202,3151.8,3151.3,0.499]
[1763258663693,3.17479999,3151.8,3151.3,0.499]
[1763258663929,0.4601,3151.7,3151.3,0.001]
[1763258664825,3.17479024,3151.8,3151.4,4.60086652]
[1763258665116,0.4601,3151.7,3151.5,0.50920665]
[1763258665434,0.002,3151.8,3151.4,7.77404975]
[1763258665634,0.002,3151.8,3151.4,4.60086652]
[1763258665803,0.4621,3151.8,3151.4,4.60086652]
[1763258666000,3.63489411,3151.8,3151.4,4.60086652]
[1763258667309,0.4621,3151.8,3151.4,4.60086652]
[1763258667504,3.17482993,3151.8,3151.4,5.37838193]
[1763258667749,0.002,3151.8,3151.4,5.37838193]
[1763258667954,0.002,3151.8,3151.4,0.77751541]
[1763258668230,0.002,3151.8,3151.3,3.17424056]
[1763258668452,3.17479889,3151.8,3151.3,0.4912]
[1763258668612,3.63489889,3151.8,3151.3,0.001]
[1763258668928,0.4621,3151.8,3151.3,3.17426202]
[1763258669141,0.002,3151.8,3151.3,0.001]
[1763258669305,0.002,3151.8,3151.3,4.12467898]
[1763258670609,0.002,3151.8,3151.4,0.4902]
[1763258671030,0.3069,3151.5,3151.3,0.46118665]
[1763258671337,0.3069,3151.4,3151.3,0.001]
[1763258671707,0.7654,3151.4,3151.3,0.001]
[1763258672947,3.93859286,3151.4,3151.3,0.001]
[1763258673153,3.48009286,3151.4,3151.3,0.001]
[1763258673650,3.93859286,3151.4,3151.3,0.001]
[1763258676703,3.48009286,3151.4,3151.3,0.001]
[1763258676829,3.48009286,3151.4,3151.3,3.63248182]
[1763258677021,0.3069,3151.4,3151.3,3.63248182]
[1763258677375,0.002,3151.8,3151.3,4.93253]
[1763258677547,0.002,3151.8,3151.7,3.63148182]
[1763258677856,0.002,3151.8,3151.7,4.09738182]
[1763258678857,0.002,3151.8,3151.7,5.06599851]
[1763258679071,0.002,3151.8,3151.7,5.53689851]
[1763258679373,0.002,3151.8,3151.7,6.09058836]
[1763258679523,0.002,3151.8,3151.7,9.26347918]
[1763258680459,0.002,3151.8,3151.7,6.09058836]
[1763258680969,0.3184,3151.8,3151.3,0.36424818]
[1763258681123,0.4574,3151.8,3151.3,4.60109851]
[1763258681328,0.002,3151.8,3151.7,0.4659]
[1763258682572,0.4581,3151.8,3151.3,0.001]
[1763258682774,0.7752,3151.8,3151.4,0.46010985]
[1763258683258,0.3171,3151.7,3151.4,0.46010985]
[1763258683657,0.3171,3151.7,3151.3,0.001]
[1763258683658,0.4547,3151.5,3151.3,0.001]
[1763258684758,0.002,3151.8,3151.4,0.9368]
[1763258684961,0.002,3151.8,3151.6,0.4659]
[1763258686046,0.002,3151.8,3151.7,0.4976289]
[1763258686253,0.002,3151.8,3151.7,1.02276274]
[1763258686435,0.002,3151.8,3151.7,1.52539164]
[1763258686761,0.002,3151.8,3151.7,1.49366274]
[1763258686959,0.002,3151.8,3151.7,1.52539164]
[1763258687162,0.002,3151.8,3151.7,2.65913244]
[1763258687348,0.002,3151.8,3151.7,2.62740354]
[1763258688234,0.002,3151.8,3151.7,5.80029436]
[1763258690642,0.002,3151.8,3151.7,2.62740354]
[1763258690846,0.002,3151.8,3151.7,5.32939436]
[1763258691570,0.002,3151.8,3151.7,5.80029436]
[1763258693850,0.002,3151.8,3151.7,5.32939436]
[1763258694675,0.002,3151.8,3151.7,5.80029436]
[1763258695951,0.002,3151.8,3151.7,4.19565356]
[1763258696156,0.002,3151.8,3151.7,4.66655356]
[1763258697671,0.002,3151.8,3151.7,1.02276274]
[1763258697870,0.3184,3151.8,3151.6,4.60009851]
[1763258698041,0.3184,3151.8,3151.6,7.77301699]
[1763258698554,0.002,3151.8,3151.7,0.4659]
[1763258699052,0.002,3151.8,3151.7,3.63879082]
[1763258699571,0.002,3151.8,3151.7,0.4659]
[1763258700244,0.002,3151.8,3151.7,3.63879082]
[1763258700947,0.002,3151.8,3151.7,7.26820016]
[1763258701264,0.002,3151.8,3151.7,8.31232185]
[1763258701446,0.002,3151.8,3151.7,5.13943103]
[1763258701975,0.3184,3151.8,3151.7,3.62940934]
[1763258702553,0.3184,3151.8,3151.7,6.80230016]
[1763258702774,0.002,3151.8,3151.7,6.80230016]
[1763258702995,0.002,3151.8,3151.7,7.04146104]
[1763258703743,0.002,3152.1,3151.7,11.09075586]
[1763258704046,0.002,3152.1,3152.0,3.40267022]
[1763258704241,0.002,3152.1,3151.8,0.7041461]
[1763258704447,0.002,3152.1,3152.0,3.40267022]
[1763258704677,0.3064,3152.1,3152.0,3.40267022]
[1763258704976,0.7738,3152.1,3152.0,3.40267022]
[1763258705277,10.29126454,3152.1,3151.3,0.001]
[1763258705452,0.4957,3151.4,3151.3,0.001]
[1763258705777,0.4957,3151.4,3151.3,3.40367022]
[1763258705970,0.963,3151.4,3151.3,3.40367022]
[1763258706309,0.963,3151.4,3151.3,0.001]
[1763258707497,4.13619286,3151.4,3151.3,0.001]
[1763258709404,5.26993366,3151.4,3151.3,0.001]
[1763258709708,1.1337408,3151.3,3150.9,0.001]
[1763258709992,0.4712,3151.0,3150.9,0.001]
[1763258710530,0.7671,3151.0,3150.9,0.001]
[1763258711195,0.1976,3150.7,3150.3,0.001]
[1763258711357,4.6012409,3150.4,3150.3,0.001]
[1763258711552,4.6012409,3150.4,3149.5,1e-08]
[1763258711553,0.405504,3150.2,3149.5,1e-08]
[1763258711794,0.2876,3149.6,3149.4,0.001]
[1763258712095,0.50398202,3150.1,3147.9,3.17670489]
[1763258712096,0.0115,3149.5,3147.9,3.17670489]
[1763258712392,1.47583902,3150.1,3147.9,3.17670489]
[1763258712393,0.2838,3149.2,3148.1,0.1922]
[1763258712773,0.7528,3149.2,3148.1,0.1922]
[1763258712957,0.7528,3149.2,3148.2,3.17640789]
[1763258713162,0.7528,3149.2,3148.1,0.6761]
[1763258713472,0.7528,3149.2,3148.1,3.85258751]
[1763258713473,3.92820962,3149.2,3148.1,3.85258751]
[1763258714295,3.92820962,3149.2,3148.1,0.6761]
[1763258714598,3.92820962,3149.2,3148.1,0.1922]